bitfinex-derivatives/quotes_SOLF0:USTF0_20250919
["timestamp","ask_amount","ask_price","bid_price","bid_amount"]
[1758320246380,0.0304843,238.73,238.71,6.6]
[1758320246678,0.0304843,238.73,238.7,3.768]
[1758320247076,0.0304843,238.73,238.71,6.6]
[1758320247478,0.0304843,238.73,238.7,3.768]
[1758320247674,0.0304843,238.73,238.71,6.6]
[1758320247874,0.0304843,238.73,238.7,3.768]
[1758320249980,0.0304843,238.73,238.71,6.7]
[1758320250283,0.0304843,238.73,238.7,3.768]
[1758320250678,0.0304843,238.73,238.71,6.7]
[1758320251070,0.0304843,238.73,238.7,3.768]
[1758320251275,0.0304843,238.73,238.71,6.7]
[1758320251476,0.0304843,238.73,238.7,3.768]
[1758320252474,0.0304843,238.73,238.71,6.7]
[1758320252976,0.0304843,238.73,238.7,3.768]
[1758320253379,0.0304843,238.73,238.71,6.7]
[1758320253683,0.0304843,238.73,238.7,3.768]
[1758320253871,0.0304843,238.73,238.71,6.7]
[1758320254073,0.0304843,238.73,238.7,3.768]
[1758320254277,0.0304843,238.73,238.71,6.7]
[1758320254482,0.0304843,238.73,238.7,3.768]
[1758320254683,0.0304843,238.73,238.72,6.7]
[1758320272189,0.0304843,238.73,238.72,7.12]
[1758320273997,0.0304843,238.73,238.72,6.7]
[1758320287505,0.0304843,238.73,238.72,108.36]
[1758320295616,0.0304843,238.73,238.72,6.7]
[1758320295815,0.0304843,238.73,238.72,108.28]
[1758320306729,4.70775329,238.82,238.78,6.57]
[1758320307032,7.07,238.82,238.8,6.57]
[1758320307429,7.07,238.82,238.81,101.58]
[1758320307829,7.07,238.82,238.81,105.3464]
[1758320308025,4.70775329,238.83,238.82,6.57]
[1758320308227,4.70775329,238.86,238.81,101.58]
[1758320308428,4.70775329,238.87,238.82,6.77]
[1758320308629,7.06,238.87,238.84,6.77]
[1758320309534,7.06,238.87,238.86,3.7655]
[1758320312534,0.72907828,238.88,238.87,6.77]
[1758320313937,7.06,238.87,238.86,3.7655]
[1758320314139,0.72907828,238.88,238.86,10.5355]
[1758320314333,7.78907828,238.88,238.86,10.5355]
[1758320316437,7.06,238.87,238.86,3.7655]
[1758320316644,7.06,238.9,238.89,3.7652]
[1758320320243,0.72885687,238.93,238.89,3.7652]
[1758320320444,7.06,238.92,238.89,10.5352]
[1758320320646,7.06,238.92,238.91,3.7648]
[1758320323743,4.70775329,238.95,238.91,10.5348]
[1758320323944,4.70775329,238.96,238.91,10.5348]
[1758320325250,7.06,238.95,238.91,10.5348]
[1758320325442,5.43648806,238.97,238.91,10.5348]
[1758320326248,7.06,238.96,238.91,10.5348]
[1758320326550,5.43648806,238.97,238.91,10.5348]
[1758320326749,7.06,238.96,238.91,10.5348]
[1758320326946,5.43648806,238.97,238.91,10.5348]
[1758320327349,7.06,238.96,238.91,10.5348]
[1758320328455,7.06,238.96,238.91,3.7648]
[1758320329550,5.43648806,238.97,238.91,3.7648]
[1758320330453,5.43648806,238.97,238.91,10.5348]
[1758320330660,0.72873477,238.97,238.91,10.5348]
[1758320330860,7.06,238.96,238.91,10.5348]
[1758320331053,0.72873477,238.97,238.91,10.5348]
[1758320331461,0.72873477,238.97,238.91,3.7648]
[1758320331855,7.06,238.96,238.91,3.7648]
[1758320332056,0.72873477,238.97,238.91,3.7648]
[1758320332254,7.06,238.96,238.91,3.7648]
[1758320332462,0.72873477,238.97,238.91,3.7648]
[1758320332762,0.72873477,238.97,238.91,10.5348]
[1758320333356,7.06,238.96,238.91,10.5348]
[1758320334061,0.72873477,238.97,238.91,10.5348]
[1758320334455,7.06,238.96,238.91,10.5348]
[1758320334854,0.72873477,238.97,238.91,10.5348]
[1758320335052,7.06,238.96,238.91,10.5348]
[1758320335256,0.72873477,238.97,238.91,10.5348]
[1758320335464,7.06,238.96,238.91,10.5348]
[1758320335668,7.06,238.96,238.91,3.7648]
[1758320336266,0.72873477,238.97,238.91,3.7648]
[1758320336561,7.06,238.96,238.91,3.7648]
[1758320337061,7.06,238.96,238.91,10.5348]
[1758320337364,0.72873477,238.97,238.91,3.7648]
[1758320337667,7.78873477,238.97,238.91,10.5348]
[1758320343565,7.78873477,238.97,238.89,0.0286547]
[1758320343566,6.63,238.96,238.89,0.0286547]
[1758320343766,11.33775329,238.96,238.89,0.0286547]
[1758320343966,6.63,238.96,238.89,0.0286547]
[1758320344162,11.33775329,238.96,238.89,0.0286547]
[1758320344966,6.63,238.94,238.89,0.0286547]
[1758320345563,4.70775329,238.95,238.89,0.0286547]
[1758320345764,6.63,238.94,238.89,0.0286547]
[1758320346368,4.70775329,238.92,238.89,0.0286547]
[1758320346563,6.63,238.91,238.89,0.0286547]
[1758320346763,4.70775329,238.92,238.89,0.0286547]
[1758320347464,6.63,238.91,238.89,0.0286547]
[1758320347873,3.7649,238.91,238.89,0.0286547]
[1758320348168,6.63,238.9,238.89,0.0286547]
[1758320352066,11.33775329,238.9,238.89,0.0286547]
[1758320353071,6.63,238.9,238.89,0.0286547]
[1758320357569,13.67770463,238.9,238.89,0.0286547]
[1758320358171,6.63,238.9,238.89,0.0286547]
[1758320365782,13.67770463,238.9,238.89,0.0286547]
[1758320366381,6.63,238.9,238.89,0.0286547]
[1758320384291,108.11,238.9,238.89,0.0286547]
[1758320386393,115.15770463,238.9,238.89,0.0286547]
[1758320388188,108.11,238.9,238.89,0.0286547]
[1758320388894,115.15929449,238.9,238.89,0.0286547]
[1758320389294,108.11,238.9,238.89,0.0286547]
[1758320389793,6.63,238.9,238.89,0.0286547]
[1758320389994,108.11,238.9,238.89,0.0286547]
[1758320392697,6.63,238.9,238.89,0.0286547]
[1758320392993,108.11,238.9,238.89,0.0286547]
[1758320396097,6.63,238.9,238.89,0.0286547]
[1758320396396,108.11,238.9,238.89,0.0286547]
[1758320399798,108.09,238.9,238.89,0.0286547]
[1758320402204,3.7649,238.91,238.9,7.06]
[1758320402400,101.46,238.9,238.89,0.0286547]
[1758320402705,108.24,238.9,238.89,0.0286547]
[1758320405007,101.46,238.9,238.89,0.0286547]
[1758320408604,108.24,238.9,238.89,0.0286547]
[1758320413310,3.7649,238.91,238.9,7.06]
[1758320413510,105.2249,238.91,238.9,7.06]
[1758320414012,112.28810801,238.91,238.9,7.06]
[1758320415008,105.2249,238.91,238.9,7.06]
[1758320415208,101.44,238.91,238.9,7.06]
[1758320420013,10.82770801,238.93,238.9,7.06]
[1758320420313,108.22,238.92,238.9,7.06]
[1758320421209,101.44,238.91,238.9,7.06]
[1758320421709,6.78,238.92,238.9,7.06]
[1758320422015,101.44,238.91,238.9,7.06]
[1758320422314,6.78,238.92,238.9,7.06]
[1758320422711,101.42,238.91,238.9,7.06]
[1758320422911,101.42,238.91,238.89,0.0286547]
[1758320422912,108.2,238.91,238.89,0.0286547]
[1758320423214,4.69976041,238.9,238.89,0.0286547]
[1758320423416,106.11976041,238.9,238.89,0.0286547]
[1758320424809,112.89976041,238.9,238.89,0.0286547]
[1758320425419,108.2,238.9,238.89,0.0286547]
[1758320429818,115.26320801,238.9,238.89,0.0286547]
[1758320434619,108.2,238.9,238.89,0.0286547]
[1758320459644,6.78,238.9,238.89,0.0286547]
[1758320459940,108.18,238.9,238.89,0.0286547]
[1758320466151,6.78,238.9,238.89,0.0286547]
[1758320466759,108.16,238.9,238.89,0.0286547]
[1758320467060,6.78,238.9,238.89,0.0286547]
[1758320468460,108.16,238.9,238.89,0.0286547]
[1758320468956,6.78,238.9,238.89,0.0286547]
[1758320469258,108.16,238.9,238.89,0.0286547]
[1758320470850,6.78,238.9,238.89,0.0286547]
[1758320471255,108.16,238.9,238.89,0.0286547]
[1758320471455,6.78,238.9,238.89,0.0286547]
[1758320471657,108.16,238.9,238.89,0.0286547]
[1758320472961,6.78,238.9,238.89,0.0286547]
[1758320473160,108.16,238.9,238.89,0.0286547]
[1758320473362,6.78,238.9,238.89,0.0286547]
[1758320474363,108.14,238.9,238.89,0.0286547]
[1758320475863,6.78,238.9,238.89,0.0286547]
[1758320476061,108.14,238.9,238.89,0.0286547]
[1758320476565,6.78,238.9,238.89,0.0286547]
[1758320476758,108.14,238.9,238.89,0.0286547]
[1758320477063,6.78,238.9,238.89,0.0286547]
[1758320477457,108.14,238.9,238.89,0.0286547]
[1758320477961,6.78,238.9,238.89,0.0286547]
[1758320478264,108.14,238.9,238.89,0.0286547]
[1758320479768,6.78,238.9,238.89,0.0286547]
[1758320480167,108.14,238.9,238.89,0.0286547]
[1758320480967,6.78,238.9,238.89,0.0286547]
[1758320481271,108.14,238.9,238.89,0.0286547]
[1758320482068,6.78,238.9,238.89,0.0286547]
[1758320482368,108.14,238.9,238.89,0.0286547]
[1758320483170,6.78,238.9,238.89,0.0286547]
[1758320483370,108.14,238.9,238.89,0.0286547]
[1758320485165,108.14,238.9,238.89,9.926e-05]
[1758320490373,6.78,238.9,238.89,9.926e-05]
[1758320490666,108.12,238.9,238.89,9.926e-05]
[1758320492974,6.78,238.9,238.89,9.926e-05]
[1758320493474,108.12,238.9,238.89,9.926e-05]
[1758320493872,6.78,238.9,238.89,9.926e-05]
[1758320494070,108.12,238.9,238.89,9.926e-05]
[1758320495275,7.05,238.88,238.85,7.11]
[1758320495476,7.06386476,238.86,238.85,7.11]
[1758320495977,108.40386476,238.86,238.85,7.11]
[1758320496678,7.06386476,238.86,238.85,7.11]
[1758320496975,108.40386476,238.86,238.85,7.11]
[1758320497675,7.06386476,238.86,238.85,7.11]
[1758320497877,108.38386476,238.86,238.85,7.11]
[1758320498976,10.82946476,238.86,238.75,0.49704592]
[1758320499173,4.7095349,238.83,238.76,6.74]
[1758320499573,0.02653608,238.82,238.76,6.74]
[1758320500274,26.90653608,238.82,238.76,6.74]
[1758320501872,0.02653608,238.82,238.76,6.74]
[1758320502378,4.73607098,238.82,238.76,6.74]
[1758320508584,4.73607098,238.82,238.77,3.767]
[1758320508883,4.73607098,238.82,238.78,6.74]
[1758320509186,0.02653608,238.82,238.77,3.767]
[1758320509587,0.02653608,238.82,238.78,6.74]
[1758320510085,0.02653608,238.82,238.77,3.767]
[1758320510279,0.02653608,238.82,238.78,6.74]
[1758320510876,0.02653608,238.82,238.77,3.767]
[1758320511082,0.02653608,238.82,238.78,6.74]
[1758320511282,0.02653608,238.82,238.77,3.767]
[1758320511780,0.02653608,238.82,238.79,6.74]
[1758320512086,0.02653608,238.82,238.78,3.7668]
[1758320512587,0.02653608,238.82,238.79,6.74]
[1758320512881,0.02653608,238.82,238.78,3.7668]
[1758320513078,0.02653608,238.82,238.79,6.74]
[1758320513585,0.02653608,238.82,238.78,3.7668]
[1758320513885,0.02653608,238.82,238.79,6.74]
[1758320514584,7.07653608,238.82,238.79,6.74]
[1758320516486,7.07653608,238.82,238.8,6.74]
[1758320517783,0.02653608,238.82,238.79,3.7666]
[1758320518296,0.02653608,238.82,238.8,6.74]
[1758320518587,0.02653608,238.82,238.8,6.53]
[1758320518989,0.02653608,238.82,238.79,3.7666]
[1758320519684,0.02653608,238.82,238.8,6.65]
[1758320521389,0.02653608,238.82,238.79,3.7666]
[1758320522083,0.02653608,238.82,238.8,6.65]
[1758320522685,0.02653608,238.82,238.79,3.7666]
[1758320522885,0.02653608,238.82,238.8,6.65]
[1758320523083,0.02653608,238.82,238.79,3.7666]
[1758320523393,0.02653608,238.82,238.8,6.65]
[1758320523597,0.02653608,238.82,238.79,3.7666]
[1758320523889,0.02653608,238.82,238.8,6.65]
[1758320524088,0.02653608,238.82,238.78,6.65]
[1758320524588,0.02653608,238.82,238.78,3.7668]
[1758320524989,0.02653608,238.82,238.79,6.65]
[1758320525290,0.02653608,238.82,238.8,6.65]
[1758320525885,6.76653608,238.82,238.8,6.65]
[1758320526493,0.02653608,238.82,238.79,3.7666]
[1758320526696,0.02653608,238.82,238.8,6.65]
[1758320528797,4.73607098,238.82,238.8,6.65]
[1758320531199,4.7095349,238.81,238.8,6.65]
[1758320531795,6.74,238.81,238.73,6.65]
[1758320532100,4.71058026,238.79,238.73,6.65]
[1758320532901,4.71058026,238.78,238.72,63.97446577]
[1758320533804,4.71058026,238.78,238.74,3.7675]
[1758320534205,4.71058026,238.78,238.75,6.65]
[1758320534401,4.71058026,238.78,238.74,3.7675]
[1758320535298,4.71058026,238.78,238.75,6.65]
[1758320536305,11.45058026,238.78,238.75,6.65]
[1758320536501,6.74,238.77,238.75,6.65]
[1758320541511,11.45058026,238.78,238.72,70.62446577]
[1758320542210,6.77212566,238.77,238.73,6.65]
[1758320542410,6.77212566,238.77,238.72,63.97446577]
[1758320542611,6.77212566,238.77,238.73,6.65]
[1758320542813,6.77212566,238.77,238.72,63.97446577]
[1758320543015,6.77212566,238.77,238.73,6.65]
[1758320544416,6.77212566,238.77,238.72,63.97446577]
[1758320544614,6.77212566,238.77,238.73,6.65]
[1758320544812,6.77212566,238.77,238.72,63.97446577]
[1758320545018,6.77212566,238.77,238.73,6.65]
[1758320545220,6.77212566,238.77,238.72,63.97446577]
[1758320545420,6.77212566,238.77,238.73,6.65]
[1758320546622,6.77212566,238.77,238.72,63.97446577]
[1758320546822,6.77212566,238.77,238.73,6.65]
[1758320547023,6.77212566,238.77,238.72,63.97446577]
[1758320547829,6.77212566,238.77,238.73,6.65]
[1758320548525,6.77212566,238.77,238.72,63.97446577]
[1758320549625,6.77212566,238.77,238.73,7.11]
[1758320549816,6.77212566,238.77,238.72,63.97446577]
[1758320550217,6.77212566,238.77,238.73,7.11]
[1758320550922,6.77212566,238.77,238.72,63.97446577]
[1758320551122,4.74270592,238.77,238.73,7.11]
[1758320551314,6.58,238.76,238.73,7.11]
[1758320552820,0.03212566,238.77,238.73,7.11]
[1758320553026,6.58,238.75,238.73,7.11]
[1758320562736,6.58,238.76,238.7,7.11]
[1758320572237,11.29058026,238.76,238.7,7.11]
[1758320573037,11.29058026,238.76,238.72,7.11]
[1758320573632,6.58,238.75,238.71,3.7679]
[1758320573838,6.58,238.75,238.72,7.11]
[1758320575451,4.71058026,238.76,238.71,3.7679]
[1758320576353,4.71058026,238.76,238.71,10.8779]
[1758320576850,11.29058026,238.75,238.71,10.8779]
[1758320577047,6.58,238.74,238.71,10.8779]
[1758320578152,4.71058026,238.75,238.71,10.8779]
[1758320579154,6.8,238.74,238.71,10.8779]
[1758320579651,6.59,238.74,238.71,10.8779]
[1758320580151,6.59,238.74,238.71,7.11]
[1758320581254,4.71058026,238.75,238.71,7.11]
[1758320581450,6.59,238.74,238.71,7.11]
[1758320581652,2.94774184,238.73,238.71,7.11]
[1758320581852,2.94774184,238.72,238.71,7.11]
[1758320600170,7.6583221,238.72,238.71,7.11]
[1758320600672,14.2483221,238.72,238.68,6.67]
[1758320600875,9.53774184,238.71,238.68,6.67]
[1758320601169,2.94774184,238.7,238.67,6.67]
[1758320601360,2.94774184,238.69,238.67,6.67]
[1758320601564,2.94774184,238.68,238.67,6.67]
[1758320611977,2.94774184,238.7,238.68,3.7685]
[1758320612172,2.95377844,238.69,238.67,6.67]
[1758320612376,7.844e-05,238.68,238.67,6.67]
[1758320613780,7.844e-05,238.68,238.67,10.4386]
[1758320614078,7.844e-05,238.68,238.67,3.7686]
[1758320614278,7.844e-05,238.68,238.67,11.0186]
[1758320617776,7.844e-05,238.68,238.67,11.4386]
[1758320617983,0.03211022,238.72,238.71,3.768]
[1758320618183,0.03211022,238.72,238.71,11.018]
[1758320620684,0.03211022,238.72,238.71,11.438]
[1758320623486,0.03211022,238.72,238.71,112.618]
[1758320630390,0.03211022,238.72,238.71,112.198]
[1758320644211,0.37811022,238.78,238.77,3.767]
[1758320644411,1.022e-05,238.78,238.77,104.907]
[1758320651606,4.33,238.82,238.81,3.7664]
[1758320654415,9.04058026,238.82,238.81,3.7664]
[1758320658319,4.33,238.82,238.81,3.7664]
[1758320667327,4.33,238.81,238.79,3.7667]
[1758320667526,7.7929354,238.83,238.8,7.06]
[1758320667828,4.33,238.82,238.8,7.06]
[1758320678227,4.71087644,238.81,238.8,7.06]
[1758320682338,4.71087644,238.82,238.8,7.06]
[1758320683235,9.04087644,238.82,238.8,7.06]
[1758320686037,4.71087644,238.82,238.79,3.7667]
[1758320686233,4.71087644,238.82,238.8,7.19]
[1758320686532,5.43994708,238.83,238.8,7.19]
[1758320686736,9.76994708,238.83,238.79,3.7667]
[1758320687038,9.76994708,238.83,238.8,7.19]
[1758320687638,9.76994708,238.83,238.79,3.7667]
[1758320687838,9.76994708,238.83,238.8,7.19]
[1758320692543,4.33,238.82,238.8,10.9564]
[1758320693941,4.33,238.82,238.75,58.63084215]
[1758320693942,4.71087644,238.84,238.82,7.19]
[1758320694140,4.71087644,238.85,238.82,7.19]
[1758320694441,4.71087644,238.86,238.82,7.19]
[1758320694834,4.71087644,238.86,238.83,3.7661]
[1758320695238,0.72900192,238.88,238.83,3.7661]
[1758320695239,4.71087644,238.87,238.83,3.7661]
[1758320695547,4.71087644,238.87,238.84,7.19]
[1758320695739,4.71087644,238.87,238.83,3.7661]
[1758320696241,5.43987836,238.88,238.83,3.7661]
[1758320696446,9.76987836,238.88,238.83,3.7661]
[1758320696750,9.76987836,238.88,238.84,3.7658]
[1758320696940,9.76987836,238.88,238.85,7.19]
[1758320698744,9.76987836,238.88,238.84,3.7658]
[1758320698947,9.76987836,238.88,238.85,7.19]
[1758320700451,9.76987836,238.88,238.86,7.02]
[1758320705047,5.43987836,238.88,238.85,3.7657]
[1758320705248,5.43987836,238.88,238.87,3.7655]
[1758320705249,0.72900192,238.88,238.87,3.7655]
[1758320705454,0.72900192,238.88,238.87,10.7855]
[1758320710952,9.04087644,238.93,238.88,3.7652]
[1758320711156,9.04087644,238.93,238.89,7.02]
[1758320711357,0.72880344,238.92,238.88,3.7652]
[1758320711561,0.72880344,238.92,238.9,3.7649]
[1758320711763,0.72880344,238.92,238.91,7.02]
[1758320718272,4.33,238.96,238.91,7.02]
[1758320718572,5.05868899,238.96,238.91,7.02]
[1758320718972,5.05868899,238.96,238.9,3.7649]
[1758320719374,5.05868899,238.96,238.91,7.02]
[1758320719570,5.05868899,238.96,238.9,3.7649]
[1758320719874,5.05868899,238.96,238.91,7.02]
[1758320720071,5.05868899,238.96,238.9,3.7649]
[1758320720567,5.05868899,238.96,238.9,7.02]
[1758320724277,5.05868899,238.96,238.91,3.7648]
[1758320724874,5.05868899,238.96,238.92,7.02]
[1758320725177,5.05868899,238.96,238.91,3.7648]
[1758320725377,5.05868899,238.96,238.92,7.02]
[1758320725777,5.05868899,238.96,238.91,3.7648]
[1758320726174,5.05868899,238.96,238.92,7.02]
[1758320726480,5.05868899,238.96,238.91,3.7648]
[1758320726778,5.05868899,238.96,238.92,7.02]
[1758320726978,5.05868899,238.96,238.91,3.7648]
[1758320727581,5.05868899,238.96,238.92,7.02]
[1758320727784,5.05868899,238.96,238.91,3.7648]
[1758320728872,5.05868899,238.96,238.92,7.14]
[1758320729278,5.05868899,238.96,238.91,3.7648]
[1758320729477,5.05868899,238.96,238.92,7.14]
[1758320730177,5.05868899,238.96,238.91,3.7648]
[1758320730377,5.05868899,238.96,238.92,7.14]
[1758320730982,5.05868899,238.96,238.91,3.7648]
[1758320731585,4.34,238.95,238.91,3.7648]
[1758320732384,4.34,238.95,238.92,7.14]
[1758320732580,5.06868899,238.96,238.91,3.7648]
[1758320732785,5.06868899,238.96,238.92,7.14]
[1758320733183,5.06868899,238.96,238.91,3.7648]
[1758320733486,5.06868899,238.96,238.92,7.14]
[1758320733785,5.06868899,238.96,238.91,3.7648]
[1758320733984,5.06868899,238.96,238.92,7.14]
[1758320734578,5.06868899,238.96,238.91,3.7648]
[1758320735080,5.06868899,238.96,238.92,7.14]
[1758320735481,5.06868899,238.96,238.91,3.7648]
[1758320735682,5.06868899,238.96,238.92,7.14]
[1758320735883,5.06868899,238.96,238.91,3.7648]
[1758320736480,5.06868899,238.96,238.92,7.14]
[1758320736786,5.06868899,238.96,238.91,3.7648]
[1758320737380,0.72868899,238.96,238.92,7.14]
[1758320737580,4.34,238.95,238.92,7.14]
[1758320737786,4.34,238.95,238.91,3.7648]
[1758320737989,4.34,238.95,238.92,7.14]
[1758320738685,4.34,238.95,238.91,3.7648]
[1758320738886,4.34,238.95,238.92,7.14]
[1758320739687,0.72868899,238.96,238.91,3.7648]
[1758320739890,5.06868899,238.96,238.91,3.7648]
[1758320740184,5.06868899,238.96,238.92,7.14]
[1758320740790,5.06868899,238.96,238.91,3.7648]
[1758320740991,4.34,238.95,238.92,7.14]
[1758320741191,4.34,238.95,238.91,3.7648]
[1758320741391,4.34,238.95,238.92,7.14]
[1758320741788,4.34,238.95,238.91,3.7648]
[1758320741986,4.34,238.95,238.92,7.14]
[1758320742189,4.34,238.95,238.91,3.7648]
[1758320742390,4.34,238.95,238.92,7.14]
[1758320743491,4.34,238.95,238.91,3.7648]
[1758320743687,4.34,238.95,238.92,7.14]
[1758320744893,4.34,238.95,238.91,3.7648]
[1758320745087,4.34,238.95,238.92,7.14]
[1758320745288,4.34,238.95,238.91,3.7648]
[1758320745493,4.34,238.95,238.92,7.14]
[1758320745695,4.34,238.95,238.91,3.7648]
[1758320745894,4.34,238.95,238.92,7.14]
[1758320746290,4.34,238.95,238.91,3.7648]
[1758320746796,4.34,238.95,238.92,7.14]
[1758320747187,4.34,238.95,238.91,3.7648]
[1758320747387,0.72868899,238.96,238.92,3.7645]
[1758320747994,0.72868899,238.96,238.93,7.14]
[1758320748190,0.72868899,238.96,238.92,3.7645]
[1758320748401,0.72868899,238.96,238.93,7.14]
[1758320748598,0.72868899,238.96,238.92,3.7645]
[1758320749900,0.72868899,238.96,238.93,7.14]
[1758320750101,0.72868899,238.96,238.92,3.7645]
[1758320750299,5.43956543,238.96,238.92,3.7645]
[1758320751096,5.43956543,238.96,238.93,7.14]
[1758320751298,5.43956543,238.96,238.92,3.7645]
[1758320751804,9.77956543,238.96,238.92,3.7645]
[1758320751998,9.77956543,238.96,238.93,7.14]
[1758320752490,9.77956543,238.96,238.92,3.7645]
[1758320752692,9.77956543,238.96,238.93,7.14]
[1758320753096,9.77956543,238.96,238.92,3.7645]
[1758320753297,9.77956543,238.96,238.93,7.14]
[1758320754000,4.34,238.95,238.93,7.14]
[1758320754199,5.43956543,238.96,238.92,3.7645]
[1758320754504,5.43956543,238.96,238.93,7.14]
[1758320754902,5.43956543,238.96,238.92,3.7645]
[1758320755304,4.71087644,238.95,238.93,7.14]
[1758320755506,4.71087644,238.95,238.92,3.7645]
[1758320756303,4.71087644,238.95,238.93,7.14]
[1758320756504,4.71087644,238.95,238.92,3.7645]
[1758320756804,5.43956543,238.96,238.93,7.14]
[1758320757001,5.43956543,238.96,238.92,3.7645]
[1758320757205,5.43956543,238.96,238.93,7.14]
[1758320757606,5.43956543,238.96,238.92,3.7645]
[1758320758005,5.43956543,238.96,238.93,7.14]
[1758320758402,5.43956543,238.96,238.92,3.7645]
[1758320758602,5.43956543,238.96,238.93,6.7]
[1758320758906,5.43956543,238.96,238.92,3.7645]
[1758320759105,5.43956543,238.96,238.93,6.7]
[1758320759504,5.43956543,238.96,238.92,3.7645]
[1758320759814,5.43956543,238.96,238.93,7.24]
[1758320760008,9.76956543,238.96,238.93,7.24]
[1758320760605,9.76956543,238.96,238.92,3.7645]
[1758320761006,9.76956543,238.96,238.93,7.24]
[1758320763612,9.76956543,238.96,238.93,3.7644]
[1758320763808,9.76956543,238.96,238.94,7.24]
[1758320768016,9.76956543,238.96,238.93,3.7644]
[1758320768218,9.76956543,238.96,238.94,7.24]
[1758320782232,4.33,238.95,238.93,3.7644]
[1758320782432,4.33,238.94,238.91,7.24]
[1758320782833,4.71087644,238.95,238.9,7.24]
[1758320783135,4.71087644,238.95,238.89,0.02862301]
[1758320783338,9.04087644,238.95,238.92,7.24]
[1758320787029,4.71087644,238.95,238.9,7.24]
[1758320787339,4.33,238.92,238.9,7.24]
[1758320787541,4.33,238.92,238.89,0.02862301]
[1758320787837,4.71087644,238.93,238.89,0.02862301]
[1758320788037,4.33,238.92,238.89,0.02862301]
[1758320788238,4.71087644,238.93,238.89,0.02862301]
[1758320788436,4.34,238.92,238.89,0.02862301]
[1758320788737,4.71087644,238.93,238.89,0.02862301]
[1758320789134,4.34,238.92,238.89,0.02862301]
[1758320789339,4.71087644,238.93,238.89,0.02862301]
[1758320789737,4.34,238.92,238.89,0.02862301]
[1758320790041,4.71087644,238.93,238.89,0.02862301]
[1758320790543,4.34,238.92,238.89,0.02862301]
[1758320791340,4.71087644,238.93,238.89,0.02862301]
[1758320791940,4.71087644,238.94,238.89,0.02862301]
[1758320792141,4.34,238.93,238.89,7.00862301]
[1758320792342,4.71087644,238.94,238.89,7.00862301]
[1758320793036,4.34,238.93,238.89,7.00862301]
[1758320793236,4.71087644,238.94,238.89,7.00862301]
[1758320794436,4.34,238.93,238.89,7.00862301]
[1758320794839,4.71087644,238.94,238.89,7.00862301]
[1758320795043,4.34,238.93,238.89,0.02862301]
[1758320795243,4.34,238.91,238.89,0.02862301]
[1758320795443,4.71087644,238.93,238.89,0.02862301]
[1758320795645,4.34,238.92,238.89,0.02862301]
[1758320795850,4.71087644,238.93,238.89,0.02862301]
[1758320796043,4.34,238.92,238.89,0.02862301]
[1758320796343,4.71087644,238.93,238.89,0.02862301]
[1758320796542,4.34,238.92,238.89,0.02862301]
[1758320796745,4.71087644,238.93,238.89,0.02862301]
[1758320796941,9.05087644,238.92,238.89,0.02862301]
[1758320797840,4.71087644,238.92,238.89,0.02862301]
[1758320798242,4.34,238.91,238.89,0.02862301]
[1758320798640,4.71087644,238.92,238.89,0.02862301]
[1758320798848,4.34,238.91,238.89,0.02862301]
[1758320799543,4.71087644,238.92,238.89,0.02862301]
[1758320799745,4.34,238.91,238.89,0.02862301]
[1758320799945,4.71087644,238.92,238.89,0.02862301]
[1758320800349,8.47537644,238.93,238.89,0.02862301]
[1758320800550,4.34,238.92,238.89,0.02862301]
[1758320800752,8.47537644,238.93,238.89,0.02862301]
[1758320801248,4.34,238.92,238.89,0.02862301]
[1758320801653,8.47537644,238.93,238.89,0.02862301]
[1758320801855,4.34,238.92,238.89,0.02862301]
[1758320802747,8.47537644,238.93,238.89,0.02862301]